bitfinex/quotes_SOLUSD_20240628
["timestamp","ask_amount","ask_price","bid_price","bid_amount"]
[1719534369590,0.66983723,149.3,149.29,15.13]
[1719534374607,0.66983723,149.3,149.22,15.13]
[1719534374608,22.49803723,149.3,149.22,15.13]
[1719534374780,15.13,149.27,149.21,35.92694801]
[1719534374986,15.13,149.26,149.21,20.79694801]
[1719534375296,15.13,149.27,149.21,35.92694801]
[1719534375695,15.13,149.27,149.21,30.44]
[1719534376095,15.13,149.24,149.19,16.345]
[1719534376282,15.13,149.23,149.16,5.49072505]
[1719534376486,6.7005,149.25,149.17,15.13]
[1719534376786,15.13,149.23,149.17,15.13]
[1719534376989,15.13,149.22,149.13,28.60313388]
[1719534377212,15.13,149.22,149.17,15.13]
[1719534377999,6.7007,149.24,149.13,28.60313388]
[1719534378210,15.13,149.22,149.16,15.13]
[1719534379286,15.13,149.21,149.15,15.13]
[1719534380905,6.7002,149.25,149.15,15.13]
[1719534381084,15.13,149.21,149.15,15.13]
[1719534381686,15.13,149.2,149.13,28.60313388]
[1719534381887,15.13,149.2,149.14,15.13]
[1719534387305,6.7011,149.23,149.14,15.13]
[1719534387306,15.13,149.19,149.14,15.13]
[1719534388300,6.7011,149.23,149.14,15.13]
[1719534388597,15.13,149.2,149.14,15.13]
[1719534389512,6.7011,149.23,149.13,28.60313388]
[1719534389513,15.13,149.18,149.13,23.3018]
[1719534389700,0.66983723,149.15,149.13,23.3018]
[1719534390914,0.66983723,149.15,149.12,15.13]
[1719534393017,0.66983723,149.15,149.1,15.9664954]
[1719534393218,0.66983723,149.15,149.12,15.13]
[1719534393931,0.66983723,149.15,149.11,15.13]
[1719534394229,0.66983723,149.15,149.12,1.32987154]
[1719534395323,0.66983723,149.15,149.13,15.13]
[1719534395624,0.66983723,149.15,149.1,36.52145072]
[1719534395824,0.66983723,149.15,149.14,15.13]
[1719534397306,0.66983723,149.15,149.1,36.52145072]
[1719534397695,0.66983723,149.15,149.1,21.39145072]
[1719534397895,0.66983723,149.15,149.13,15.13]
[1719534401629,0.66983723,149.15,149.1,21.39145072]
[1719534401806,0.66983723,149.15,149.13,15.13]
[1719534409227,0.66983723,149.15,149.1,102.07145072]
[1719534409930,0.66983723,149.15,149.1,108.79245072]
[1719534414905,0.66983723,149.15,149.11,26.881]
[1719534414906,1e-08,149.15,149.11,26.881]
[1719534415111,15.5385,149.2,149.11,20.16]
[1719534416241,15.5385,149.2,149.16,15.13]
[1719534418332,15.5385,149.2,149.15,15.13]
[1719534422035,15.5385,149.2,149.13,10.0792103]
[1719534422220,30.6685,149.2,149.15,15.13]
[1719534422633,15.5385,149.2,149.15,15.13]
[1719534423026,30.6685,149.2,149.15,15.13]
[1719534424623,15.13,149.19,149.14,10.0792103]
[1719534425020,15.13,149.19,149.13,15.13]
[1719534425021,15.13,149.19,149.13,25.2092103]
[1719534425226,15.13,149.19,149.13,10.07934649]
[1719534425639,22.241,149.2,149.13,25.20934649]
[1719534425640,15.13,149.18,149.13,25.20934649]
[1719534427251,15.13,149.17,149.13,10.07934649]
[1719534428439,15.13,149.17,149.13,10.07981147]
[1719534429625,0.6705559,149.14,149.13,10.07981147]
[1719534429846,0.6705559,149.14,149.13,10.07976054]
[1719534430842,32.2777559,149.14,149.13,10.07976054]
[1719534431045,32.2777559,149.14,149.1,10.91625594]
[1719534431232,15.13,149.11,149.1,0.8364954]
[1719534432161,15.13,149.12,149.1,0.8364954]
[1719534432456,17.1477559,149.14,149.1,0.8364954]
[1719534432661,15.13,149.12,149.1,0.8364954]
[1719534434232,15.13,149.11,149.1,0.8364954]
[1719534436756,17.1477559,149.14,149.1,0.8364954]
[1719534436952,15.13,149.12,149.1,0.8364954]
[1719534442348,17.1477559,149.14,149.1,0.8364954]
[1719534443248,32.2777559,149.14,149.1,0.8364954]
[1719534444345,17.1477559,149.14,149.1,0.8364954]
[1719534447458,32.2777559,149.14,149.1,0.8364954]
[1719534448136,17.1477559,149.14,149.1,0.8364954]
[1719534448343,32.2777559,149.14,149.1,0.8364954]
[1719534449363,17.1477559,149.14,149.1,0.8364954]
[1719534449655,0.6705559,149.11,149.1,0.8364954]
[1719534453067,15.8005559,149.11,149.1,0.8364954]
[1719534453641,22.5069559,149.11,149.1,0.8364954]
[1719534453849,42.5069559,149.11,149.1,0.8364954]
[1719534456176,57.6369559,149.11,149.1,0.8364954]
[1719534456363,57.6369559,149.11,149.01,20.63334878]
[1719534456364,15.8659,149.1,149.01,5.50334878]
[1719534456660,15.13,149.07,149.01,15.13]
[1719534457238,26.7074,149.09,149.01,15.13]
[1719534457546,15.13,149.06,149.01,15.13]
[1719534457747,20.0,149.09,149.01,15.13]
[1719534459339,15.13,149.02,148.97,10.08598373]
[1719534459557,15.13,149.0,148.95,0.8364954]
[1719534459756,6.7102,149.03,148.95,0.8364954]
[1719534459959,15.13,148.99,148.95,0.8364954]
[1719534460546,22.2844,149.02,148.95,0.8364954]
[1719534460547,15.13,148.98,148.95,0.8364954]
[1719534460960,15.13,148.96,148.95,0.8364954]
[1719534461462,42.3195,148.96,148.95,0.8364954]
[1719534461777,51.09,148.96,148.95,0.8364954]
[1719534461946,15.13,148.97,148.95,0.8364954]
[1719534462449,15.13,148.96,148.95,0.8364954]
[1719534462665,23.0376,149.0,148.95,0.8364954]
[1719534462964,15.13,148.97,148.95,0.8364954]
[1719534463160,15.13,148.98,148.95,0.8364954]
[1719534463373,23.0376,149.0,148.95,0.8364954]
[1719534463542,15.13,148.98,148.95,0.8364954]
[1719534463944,16.5572,149.0,148.95,0.8364954]
[1719534464159,15.13,148.99,148.95,0.8364954]
[1719534464346,15.13,148.98,148.95,0.8364954]
[1719534464747,16.5572,149.0,148.95,0.8364954]
[1719534464947,15.13,148.98,148.95,0.8364954]
[1719534465148,16.5572,149.0,148.95,0.8364954]
[1719534465348,15.13,148.98,148.95,0.8364954]
[1719534465857,16.5572,149.0,148.95,0.8364954]
[1719534466061,60.52,149.03,148.95,0.8364954]
[1719534466257,15.13,148.99,148.95,0.8364954]
[1719534466465,60.52,149.03,148.95,0.8364954]
[1719534466765,15.13,149.0,148.95,0.8364954]
[1719534467673,15.13,149.0,148.95,15.9664954]
[1719534468280,15.13,149.0,148.95,0.8364954]
[1719534468951,15.13,148.99,148.95,0.8364954]
[1719534469267,6.7109,149.01,148.95,0.8364954]
[1719534469445,20.0,149.02,148.97,15.13]
[1719534469650,35.13,149.03,148.97,15.13]
[1719534469870,15.13,149.02,148.97,15.13]
[1719534470289,15.13,149.02,148.96,15.13]
[1719534470474,20.0,149.03,148.96,15.13]
[1719534470681,15.13,149.02,148.95,0.8364954]
[1719534470851,15.13,149.02,148.96,15.13]
[1719534472257,15.13,149.01,148.95,15.9664954]
[1719534472457,15.13,149.0,148.95,15.9664954]
[1719534472957,15.13,149.0,148.95,0.8364954]
[1719534473152,15.13,149.0,148.95,15.9664954]
[1719534473354,15.13,149.01,148.95,15.9664954]
[1719534474172,15.13,149.01,148.95,0.8364954]
[1719534474377,15.13,149.01,148.95,15.9664954]
[1719534476374,15.13,149.01,148.95,0.8364954]
[1719534476546,20.0,149.03,148.98,15.13]
[1719534476869,15.13,149.05,148.96,6.4362]
[1719534477176,20.0,149.04,148.96,6.4362]
[1719534477355,20.0,149.04,148.99,15.13]
[1719534478277,35.13,149.04,148.98,15.13]
[1719534479271,15.13,148.99,148.95,0.8364954]
[1719534479573,81.9969,149.03,148.95,0.8364954]
[1719534479776,26.7106,149.02,148.95,0.8364954]
[1719534480070,20.0,149.02,148.95,0.8364954]
[1719534480887,26.7106,149.02,148.95,0.8364954]
[1719534481557,20.0,149.02,148.95,0.8364954]
[1719534481776,15.13,148.97,148.95,0.8364954]
[1719534482273,15.13,148.98,148.95,0.8364954]
[1719534483286,20.0,149.02,148.95,0.8364954]
[1719534483460,15.13,148.99,148.95,0.8364954]
[1719534484266,15.13,149.0,148.95,0.8364954]
[1719534485053,15.13,148.98,148.95,0.8364954]
[1719534485255,15.13,148.96,148.95,0.8364954]
[1719534488075,20.0,149.02,148.95,0.8364954]
[1719534488278,15.13,148.98,148.95,0.8364954]
[1719534488472,20.0,149.02,148.95,0.8364954]
[1719534488679,6.7114,149.0,148.95,0.8364954]
[1719534488983,20.0,148.99,148.95,0.8364954]
[1719534489574,0.67136624,148.96,148.95,0.8364954]
[1719534491281,20.67136624,148.96,148.95,0.8364954]
[1719534492178,27.38456624,148.96,148.95,0.8364954]
[1719534492480,20.67136624,148.96,148.95,0.8364954]
[1719534492883,27.38456624,148.96,148.95,0.8364954]
[1719534493265,20.67136624,148.96,148.95,0.8364954]
[1719534493889,27.38456624,148.96,148.95,0.8364954]
[1719534494389,6.7141,148.94,148.93,0.03978666]
[1719534494596,26.7141,148.94,148.93,0.03978666]
[1719534495699,57.0741,148.94,148.93,0.03978666]
[1719534496185,16.3701,148.91,148.75,22.3965]
[1719534496397,30.36,148.85,148.75,22.3965]
[1719534496873,20.0,148.84,148.75,22.3965]
[1719534497071,20.0,148.84,148.8,0.3364954]
[1719534497574,20.0,148.86,148.8,0.3364954]
[1719534497966,20.0,148.88,148.8,0.3364954]
[1719534498185,23.0859,148.91,148.8,0.3364954]
[1719534498186,20.0,148.9,148.8,0.3364954]
[1719534498694,26.7159,148.9,148.8,0.3364954]
[1719534498992,20.0,148.9,148.8,0.3364954]
[1719534499170,20.0,148.9,148.81,22.3965]
[1719534501080,20.0,148.92,148.81,22.3965]
[1719534501275,26.715,148.92,148.81,22.3965]
[1719534501579,20.0,148.92,148.81,52.7565]
[1719534501891,15.6803,148.95,148.81,52.7565]
[1719534502076,0.67136624,148.96,148.81,72.9165]
[1719534502272,0.67136624,148.96,148.85,22.637]
[1719534502876,0.67136624,148.96,148.87,30.36]
[1719534503494,0.67136624,148.96,148.85,22.637]
[1719534504097,7.38466624,148.96,148.85,22.637]
[1719534504395,30.36,148.94,148.85,22.637]
[1719534504603,6.715,148.92,148.85,22.637]
[1719534504901,6.7143,148.94,148.85,22.637]
[1719534505396,20.0,148.93,148.85,22.637]
[1719534505609,20.0,148.94,148.85,22.637]
[1719534506195,0.67136624,148.96,148.85,22.637]
[1719534507308,7.38466624,148.96,148.85,22.637]
[1719534507493,20.0,148.95,148.85,22.637]
[1719534507872,6.7145,148.94,148.85,22.637]
[1719534508184,26.7136,148.95,148.85,22.637]
[1719534508489,20.0,148.95,148.85,22.637]
[1719534508681,0.67136624,148.96,148.85,22.637]
[1719534509695,20.0,148.97,148.85,22.637]
[1719534510095,20.0,148.97,148.85,22.137]
[1719534511703,26.7129,148.97,148.85,22.137]
[1719534512395,20.0,148.97,148.85,22.137]
[1719534514402,6.7117,149.0,148.85,22.137]
[1719534514601,20.0,148.99,148.85,22.137]
[1719534514776,20.0,148.99,148.82,99.36]
[1719534514981,6.711,149.01,148.86,22.1926]
[1719534515299,6.7127,148.98,148.87,22.1926]
[1719534515481,15.068,149.03,148.87,22.1926]
[1719534515682,6.7108,149.02,148.87,22.1926]
[1719534516205,15.068,149.03,148.87,22.1926]
[1719534516390,20.0,149.02,148.87,22.1926]
[1719534517687,6.7115,149.0,148.87,22.1926]
[1719534517882,20.0,148.99,148.87,22.1926]
[1719534518292,6.7137,148.95,148.87,22.1926]
[1719534518484,6.7132,148.96,148.87,22.1926]
[1719534518691,20.0,148.95,148.87,22.1926]
[1719534519284,20.0,148.96,148.87,22.1926]
[1719534519486,26.7134,148.96,148.87,22.1926]
[1719534520094,20.0,148.96,148.87,22.1926]
[1719534520299,6.7141,148.94,148.87,22.1926]
[1719534520593,6.7137,148.95,148.87,22.1926]
[1719534520996,6.7141,148.94,148.87,22.1926]
[1719534521198,15.1412,148.97,148.87,22.1926]
[1719534521512,15.1412,148.97,148.83,22.249]
[1719534521513,20.0,148.96,148.83,22.249]
[1719534521696,16.7841,148.95,148.83,22.249]
[1719534521896,20.0,148.94,148.83,22.249]
[1719534523089,6.715,148.92,148.83,22.249]
[1719534523299,20.0,148.91,148.83,22.249]
[1719534524013,20.0,148.92,148.83,22.249]
[1719534524392,26.7141,148.94,148.83,22.249]
[1719534524700,20.0,148.94,148.83,22.249]
[1719534524899,6.714,148.95,148.83,22.249]
[1719534525102,26.7141,148.94,148.83,22.249]
[1719534525302,6.7141,148.94,148.83,22.249]
[1719534525496,20.0,148.93,148.83,22.249]
[1719534526407,20.0,148.96,148.83,22.249]
[1719534527291,6.7151,148.92,148.83,22.249]
[1719534527600,20.0,148.91,148.83,22.249]
[1719534528599,20.0,148.92,148.83,22.249]
[1719534528806,26.715,148.92,148.83,22.249]
[1719534529509,6.7155,148.91,148.83,22.249]
[1719534529701,0.67190755,148.84,148.83,22.249]
[1719534536405,0.67190755,148.84,148.8,0.3364954]
[1719534539714,27.39050755,148.84,148.8,0.3364954]
[1719534539921,20.0,148.83,148.8,0.3364954]
[1719534540100,0.67190755,148.84,148.8,0.3364954]
[1719534540301,20.67190755,148.84,148.8,0.3364954]
[1719534540918,20.0,148.83,148.8,0.3364954]
[1719534541516,20.67190755,148.84,148.8,0.3364954]
[1719534541911,20.0,148.83,148.8,0.3364954]
[1719534542223,16.67880755,148.84,148.8,0.3364954]
[1719534542521,20.0,148.83,148.8,0.3364954]
[1719534543106,0.67190755,148.84,148.8,0.3364954]
[1719534543623,20.67190755,148.84,148.8,0.3364954]
[1719534544214,27.39050755,148.84,148.8,0.3364954]
[1719534545120,20.67190755,148.84,148.8,0.3364954]
[1719534545517,6.7199,148.81,148.8,0.3364954]
[1719534545913,26.7199,148.81,148.8,0.3364954]
[1719534546318,20.0,148.81,148.8,0.3364954]
[1719534548824,7.39050755,148.84,148.8,0.3364954]
[1719534548825,0.67190755,148.84,148.8,0.3364954]
[1719534549510,0.67190755,148.81,148.8,0.3364954]
[1719534561431,0.67190755,148.81,148.79,6.0741954]
[1719534562133,0.67190755,148.81,148.77,16.2087]
[1719534566135,0.67190755,148.81,148.75,6.2509]
[1719534569523,0.67190755,148.76,148.75,6.2509]
[1719534576647,0.67190755,148.76,148.75,21.4609]
[1719534582857,0.67190755,148.76,148.75,6.2509]
[1719534583052,0.67190755,148.76,148.75,21.4609]
[1719534584251,0.67190755,148.76,148.74,10.10510844]
[1719534584432,0.67190755,148.76,148.74,15.21]
[1719534586042,0.67190755,148.76,148.73,31.5782815]
[1719534586236,0.67190755,148.76,148.72,10.10565342]
[1719534586438,0.67190755,148.76,148.71,25.31565342]
[1719534587237,15.88190755,148.76,148.71,10.10565342]
[1719534587451,15.21,148.75,148.69,25.31565342]
[1719534587756,15.21,148.75,148.69,10.10565342]
[1719534588258,15.21,148.75,148.69,25.31565342]
[1719534588450,15.88190755,148.76,148.7,15.21]
[1719534588959,15.21,148.75,148.7,15.21]
[1719534589348,0.67190755,148.76,148.67,10.10565342]
[1719534589349,20.0,148.74,148.67,10.10565342]
[1719534589659,0.67190755,148.68,148.67,15.21]
[1719534590441,0.67190755,148.68,148.66,33.80264882]
[1719534590649,0.67190755,148.68,148.67,15.21]
[1719534591553,0.67190755,148.68,148.66,23.6969954]
[1719534591759,0.67190755,148.68,148.67,15.21]
[1719534593855,15.1684,148.78,148.67,30.42]
[1719534594056,30.3784,148.78,148.72,15.21]
[1719534594242,60.84,148.82,148.69,6.721]
[1719534594243,16.512,148.82,148.69,6.721]
[1719534594449,15.21,148.8,148.68,10.11070419]
[1719534594637,15.21,148.8,148.74,15.21]
[1719534594960,16.512,148.82,148.75,15.21]
[1719534595162,16.512,148.82,148.68,91.11070419]
[1719534595163,16.512,148.82,148.78,15.21]
[1719534595459,16.512,148.82,148.73,22.516]
[1719534595763,16.512,148.82,148.77,15.21]
[1719534596250,31.722,148.82,148.76,15.21]
[1719534596654,16.512,148.82,148.73,22.516]
[1719534598458,16.6218,148.86,148.74,30.43]
[1719534599249,6.7191,148.83,148.73,10.10515963]
[1719534599449,16.6218,148.86,148.71,62.25815963]
[1719534599656,6.719,148.84,148.72,10.10515963]
[1719534599849,6.719,148.84,148.71,62.25815963]
[1719534600359,23.3399,148.86,148.71,52.153]
[1719534600659,20.0,148.85,148.74,30.43]
[1719534600863,16.6218,148.86,148.74,30.43]
[1719534601944,16.6218,148.86,148.74,40.53341055]
[1719534602155,16.6218,148.86,148.75,1.28519355]
[1719534602357,16.6218,148.86,148.74,40.53341055]
[1719534602557,16.6218,148.86,148.74,30.43]
[1719534602758,23.3396,148.86,148.74,30.43]
[1719534603072,16.6218,148.86,148.74,30.43]
[1719534603367,16.6218,148.86,148.75,1.3439345]
[1719534603670,16.6218,148.86,148.74,40.53341055]
[1719534604673,16.6218,148.86,148.74,30.43]
[1719534604961,16.6218,148.86,148.74,40.5333249]
[1719534605356,16.6218,148.86,148.75,10.1033249]
[1719534605562,16.6218,148.86,148.77,30.43]
[1719534606959,16.6218,148.86,148.76,30.43]
[1719534608256,16.6218,148.86,148.74,10.10241958]
[1719534608581,16.6218,148.86,148.75,30.43]
[1719534609574,0.67226891,148.76,148.75,30.43]
[1719534611175,17.29373277,148.86,148.75,30.43]
[1719534611349,17.29373277,148.86,148.75,40.53245133]
[1719534611755,17.29373277,148.86,148.75,30.43]
[1719534612058,0.67193277,148.85,148.74,30.43]
[1719534613083,16.6218,148.86,148.77,30.43]
[1719534613256,16.6218,148.86,148.78,7.61422955]
[1719534614070,16.6218,148.86,148.78,6.2706]
[1719534614261,15.93593277,148.9,148.8,30.43]
[1719534614585,15.264,148.9,148.8,30.43]
[1719534614964,15.93593277,148.9,148.8,47.2122]
[1719534615164,0.67193277,148.89,148.8,16.7822]
[1719534615363,20.67193277,148.89,148.78,6.2706]
[1719534616171,20.67193277,148.89,148.78,26.942532]
[1719534617975,27.38833277,148.89,148.78,6.2706]
[1719534618177,27.38833277,148.89,148.76,30.43]
[1719534618387,27.38833277,148.89,148.77,21.9799]
[1719534619669,20.67193277,148.89,148.77,21.9799]
[1719534621876,0.67193277,148.89,148.79,30.43]
[1719534623168,15.93593277,148.9,148.79,30.43]
[1719534623865,0.67193277,148.89,148.79,30.43]
[1719534624182,0.67193277,148.89,148.77,32.07912045]
[1719534624382,0.67193277,148.89,148.79,30.43]
[1719534625468,15.93593277,148.9,148.79,30.43]
[1719534625968,15.264,148.9,148.79,30.43]
[1719534626270,15.264,148.9,148.8,1.34327779]
[1719534626691,15.264,148.9,148.87,15.19]
[1719534626985,15.264,148.9,148.88,15.19]
[1719534628589,15.264,148.9,148.85,1.3431772]
[1719534628769,15.264,148.9,148.84,15.264]
[1719534629679,0.67186241,148.85,148.84,15.264]
[1719534631791,0.67186241,148.85,148.8,36.5943]
[1719534632998,0.67186241,148.85,148.82,15.264]
[1719534634696,0.67186241,148.85,148.77,16.4829]
[1719534634997,0.67186241,148.85,148.77,21.90906004]
[1719534635373,0.67186241,148.85,148.77,43.88896004]
[1719534638201,0.67186241,148.85,148.77,27.40606004]
[1719534639975,16.0408,148.84,148.77,27.40606004]
[1719534640191,16.0408,148.84,148.77,5.42616004]
[1719534640396,16.0408,148.84,148.76,32.08090304]
[1719534640991,16.0408,148.84,148.76,21.9799]
[1719534641616,16.0408,148.84,148.76,32.08090304]
[1719534642900,16.0408,148.84,148.76,21.9799]
[1719534643103,16.0408,148.84,148.76,32.08175417]
[1719534644102,16.71273277,148.84,148.75,12.50728573]
[1719534644303,16.71273277,148.84,148.75,5.4983671]
[1719534644513,16.71273277,148.84,148.76,12.507285]
[1719534648585,15.21,148.82,148.77,15.21]
[1719534649720,0.67186241,148.78,148.76,12.507285]
[1719534649903,0.67186241,148.78,148.77,15.21]
[1719534652397,0.67186241,148.78,148.77,21.931]
[1719534654098,0.67186241,148.78,148.77,15.21]
[1719534654409,0.67193277,148.88,148.77,95.63]
[1719534654410,15.6796,148.87,148.77,95.63]
[1719534654713,15.00766723,148.87,148.85,15.21]
[1719534656097,15.00766723,148.87,148.86,15.21]
[1719534656309,15.00766723,148.87,148.79,10.09950479]
[1719534656828,15.00766723,148.87,148.85,15.21]
[1719534657194,6.4884,148.92,148.86,15.21]
[1719534657394,6.4884,148.92,148.89,15.21]
[1719534659115,15.6796,148.93,148.91,15.21]
[1719534659321,6.06698547,148.93,148.91,15.21]
[1719534660921,6.06698547,148.93,148.92,15.21]
[1719534661300,6.1586,148.96,148.92,15.21]
[1719534661617,6.1586,148.96,148.95,15.21]
[1719534661918,6.1809,149.0,148.94,15.21]
[1719534662120,21.3909,149.0,148.94,15.21]
[1719534662498,6.1809,149.0,148.95,16.55242758]
[1719534662718,6.1809,149.0,148.9,30.35]
[1719534663297,7.38403277,148.99,148.87,30.35]
[1719534663509,7.38373277,148.99,148.87,5.39403945]
[1719534663721,7.38373277,148.99,148.86,46.7008]
[1719534664427,16.0363,148.98,148.86,46.7008]
[1719534664624,0.67193277,148.97,148.86,46.7008]
[1719534666599,16.0363,148.98,148.92,30.35]
[1719534666806,6.1809,149.0,148.93,1.34216942]
[1719534667211,6.1809,149.0,148.92,30.35]
[1719534669515,0.67150148,148.93,148.92,30.35]
[1719534669708,0.67150148,148.93,148.9,6.721]
[1719534670405,0.67150148,148.93,148.89,30.35]
[1719534670601,0.67150148,148.93,148.9,1.34240569]
[1719534670826,0.67150148,148.93,148.92,30.35]
[1719534673207,0.67150148,148.93,148.91,53.0242]
[1719534676118,0.67150148,148.93,148.91,22.6742]
[1719534678330,0.67150148,148.93,148.89,30.35]
[1719534678539,0.67150148,148.93,148.87,20.21]
[1719534678836,0.67150148,148.93,148.86,5.48653053]
[1719534678837,16.51780148,148.93,148.86,5.48653053]
[1719534679139,16.51780148,148.93,148.86,26.899837]
[1719534679337,16.51780148,148.93,148.83,6.99447799]
[1719534679521,16.51780148,148.93,148.84,30.0]
[1719534679835,16.51780148,148.93,148.83,6.99447799]
[1719534680741,16.51780148,148.93,148.84,16.517802]
[1719534687135,17.18973425,148.93,148.84,16.517802]
[1719534687342,16.51780148,148.93,148.84,16.517802]
[1719534687534,16.51780148,148.93,148.85,30.35]
[1719534689532,0.67150148,148.86,148.85,30.35]
[1719534692283,0.67150148,148.86,148.84,16.517802]
[1719534694554,0.67150148,148.86,148.83,5.29070329]
[1719534694758,0.67150148,148.86,148.79,30.35]
[1719534694937,0.67150148,148.86,148.8,6.99133925]
[1719534695138,0.67150148,148.86,148.82,21.5321]
[1719534698250,0.67150148,148.86,148.83,0.92901524]
[1719534700379,0.67150148,148.86,148.83,1.34313031]
[1719534701447,0.67150148,148.86,148.82,51.8821]
[1719534704868,0.67150148,148.86,148.83,1.34316949]
[1719534705552,0.67150148,148.86,148.82,51.8821]
[1719534705753,0.67150148,148.86,148.85,30.35]
[1719534705964,0.67150148,148.86,148.85,31.69299433]
[1719534706266,0.67150148,148.86,148.85,30.35]
[1719534706655,0.67150148,148.86,148.85,40.44761543]
[1719534707256,0.67150148,148.86,148.85,30.35]
[1719534707465,21.48061608,148.91,148.85,30.35]
[1719534709650,0.67181727,148.86,148.85,30.35]
[1719534711881,0.67181727,148.86,148.83,10.09603193]
[1719534712350,0.67181727,148.86,148.82,21.5321]
[1719534712549,0.67181727,148.86,148.82,31.62813193]
[1719534713165,0.67181727,148.86,148.83,40.44603193]
[1719534713673,0.67181727,148.86,148.83,30.35]
[1719534714078,0.67181727,148.86,148.83,40.44603193]
[1719534714786,0.67181727,148.86,148.83,40.4462026]
[1719534715454,0.67181727,148.86,148.84,10.0962026]
[1719534715658,0.67181727,148.86,148.83,40.4462026]
[1719534715865,0.67181727,148.86,148.84,10.0962026]
[1719534716681,0.67181727,148.86,148.85,21.921]
[1719534717562,0.67181727,148.86,148.85,15.19]
[1719534717764,0.67181727,148.86,148.85,21.921]
[1719534718171,0.67181727,148.86,148.85,15.19]
[1719534719679,0.67181727,148.86,148.85,36.670616]
[1719534720171,0.67181727,148.86,148.85,15.19]
[1719534725688,0.67181727,148.86,148.85,25.28706105]
[1719534725882,0.67181727,148.86,148.85,32.01806105]
[1719534726082,0.67181727,148.86,148.85,21.921]
[1719534726282,0.67181727,148.86,148.85,32.01740361]
[1719534726474,0.67181727,148.86,148.85,21.921]
[1719534726875,0.67181727,148.86,148.85,32.01762877]
[1719534727468,0.67181727,148.86,148.85,10.09662877]
[1719534727673,0.67181727,148.86,148.85,15.19]
[1719534729784,0.67181727,148.86,148.84,10.09662877]
[1719534729985,0.67181727,148.86,148.85,15.19]
[1719534734191,0.67181727,148.86,148.84,15.559031]
[1719534734400,0.67181727,148.86,148.83,20.65240231]
[1719534736299,0.67181727,148.86,148.83,5.46240231]
[1719534736504,0.67181727,148.86,148.82,15.19]
[1719534738592,17.30911727,148.86,148.81,20.56926196]
[1719534739302,17.98105004,148.86,148.81,20.56926196]
[1719534739607,33.17105004,148.86,148.81,5.37926196]
[1719534739797,33.17105004,148.86,148.8,15.19]
[1719534740102,17.98105004,148.86,148.81,15.19]
[1719534749815,0.67181727,148.82,148.81,15.19]
[1719534756610,0.67181727,148.82,148.79,29.63550548]
[1719534756815,0.67181727,148.82,148.81,15.19]
[1719534757306,0.67181727,148.82,148.8,15.19]
[1719534757800,0.67181727,148.82,148.79,22.65067037]
[1719534758416,0.67181727,148.82,148.79,5.34155337]
[1719534758702,0.67181727,148.82,148.78,15.19]
[1719534759803,0.67181727,148.82,148.76,17.08535823]
[1719534760348,21.6026,148.81,148.76,22.38287076]
[1719534760631,15.19,148.79,148.76,5.29733816]
[1719534760803,15.19,148.79,148.74,15.19]
[1719534761011,15.19,148.79,148.71,1.88994913]
[1719534761205,0.67193277,148.78,148.74,15.19]
[1719534761405,15.86193277,148.78,148.71,23.49254913]
[1719534761632,0.67193277,148.78,148.71,7.18566317]
[1719534761832,16.2927,148.75,148.71,7.18566317]
[1719534762040,16.96463277,148.75,148.71,7.18566317]
[1719534762213,32.15463277,148.75,148.71,7.18566317]
[1719534762824,32.15463277,148.75,148.72,15.19]
[1719534762825,16.2927,148.75,148.72,15.19]
[1719534763908,16.2927,148.75,148.71,7.18566317]
[1719534764115,16.2927,148.75,148.72,15.19]
[1719534764303,16.2927,148.75,148.71,1.88994913]
[1719534765034,16.96463277,148.75,148.71,1.88994913]
[1719534765801,16.96463277,148.75,148.7,15.19]